Cogmind - Beta 14 @@@ ROGUE MODE // 2025.03.14 @ 18:42:58 Player: GiggleBox Result: Destroyed by Enhanced Grunt with Improved Deuterium Engine chain reaction Performance ------------- Evolutions (4) 2000 Regions Visited (6) 1200 Robots Destroyed (71) 355 Value Destroyed (1855) 1855 Prototype IDs (4) 80 Alien Tech Used (0) 0 Bonus (945) 945 TOTAL SCORE: 6435 Bonus ------- High Alert Combat Kills 119 Follower Combat Kills 226 Met Imprinter 300 Was Imprinted 300 Cogmind --------- Core Integrity 0/850 Matter 178/300 Energy 100/100 System Corruption 0% Temperature Cool (12) Movement Core (350) Ox6 Location -6/Factory Parts ------- > --- POWER (1) -------- (None) > --- PROPULSION (4) --- (None) > --- UTILITY (8) ------ Large Storage Unit Enhanced Optical Array Transport Network Coupler > --- WEAPON (2) ------- (None) > --- INVENTORY (15) --- (None) Peak State ------------ > --- POWER ------------ Deuterium Engine > --- PROPULSION ------- Light Treads Light Treads Light Treads > --- UTILITY ---------- Large Storage Unit Core Analyzer Phasing AFG > --- WEAPON ----------- Particle Cannon Heavy Assault Rifle > --- INVENTORY -------- Deuterium Engine Deuterium Engine Cooling System Large Storage Unit Compact Battery Compact Battery Transport Network Coupler Power Shielding Medium Armor Plating Shield Generator Relay Coupler [Programmer] Beam Rifle [Rating: 31] Favorites ----------- Power Deuterium Engine Engine Deuterium Engine Propulsion Light Treads Treads Light Treads Utility Compact Battery Device Cooling System Storage Compact Battery Processor Transport Network Coupler Protection Power Shielding Weapon Heavy Assault Rifle Energy Gun EM Pulse Gun Energy Cannon Particle Cannon Ballistic Gun Heavy Assault Rifle Launcher Grenade Launcher Special Weapon Enhanced Flamer Build | -11 -10 -9 -9 -7 -6 -6 ------- Run | Yrd Mat Mat Min Zio Pro Fac Slots Evolved 8 | . . 2 . . . 6 Power . | . . . . . . . Propulsion 2 | . . 1 . . . 1 Utility 6 | . . 1 . . . 5 Weapon . | . . . . . . . Parts Attached 74 | 8 8 31 . 9 2 16 Power 9 | 1 . 6 . . . 2 Engine 9 | 1 . 6 . . . 2 Core . | . . . . . . . Reactor . | . . . . . . . Propulsion 11 | 2 . 9 . . . . Treads 11 | 2 . 9 . . . . Leg . | . . . . . . . Wheel . | . . . . . . . Hover . | . . . . . . . Flight . | . . . . . . . Utility 29 | 2 2 6 . 9 . 10 Device 13 | 1 1 2 . 4 . 5 Storage 7 | 1 . 3 . 1 . 2 Processor 3 | . . . . 1 . 2 Hackware . | . . . . . . . Protection 6 | . 1 1 . 3 . 1 Artifact . | . . . . . . . Weapon 25 | 3 6 10 . . 2 4 Energy Gun 6 | . 2 2 . . 1 1 Energy Cannon 1 | . . 1 . . . . Ballistic Gun 14 | 3 2 7 . . . 2 Ballistic Cannon . | . . . . . . . Launcher 2 | . 2 . . . . . Special Weapon 2 | . . . . . 1 1 Impact Weapon . | . . . . . . . Slashing Weapon . | . . . . . . . Piercing Weapon . | . . . . . . . Special Melee Weapon . | . . . . . . . Unidentified Prototypes 3 | . . 2 . 1 . . Parts Lost 17 | . . 3 . . 2 12 Power 1 | . . . . . . 1 Propulsion 5 | . . 2 . . 2 1 Utility 5 | . . . . . . 5 Weapon 6 | . . 1 . . . 5 Highest Loss Streak 9 | . . 1 . . 2 9 To Critical Strikes . | . . . . . . . Average Slot Usage (%) 97 | . 99 99 100 100 98 74 Engine 11 | . 14 11 11 11 11 5 Treads 29 | . 28 32 33 33 31 4 Device 9 | . 5 14 11 10 . 12 Storage 19 | . 14 17 22 21 22 19 Protection 4 | . 8 1 . . 11 12 Energy Gun 3 | . 4 7 . . . 5 Energy Cannon 6 | . . 2 11 11 11 4 Ballistic Gun 11 | . 20 12 11 11 7 . Peak Build Rating 31 | 7 9 20 17 31 20 30 Average Rating 16 | 5 7 16 17 18 18 27 On Entrance 12 | . 7 9 17 17 18 18 Naked Turns . | . . . . . . . Heaviest Build 71 | 12 14 39 39 39 38 71 Greatest Support 63 | 40 40 63 60 60 60 20 Greatest Overweight (x) 23 | . . . . . 1 23 Average Overweight (x) . | . . . . . . 2 Largest Inventory Capacity 15 | 8 8 15 15 15 15 15 Average Capacity 13 | 7 8 12 15 15 15 15 Most Carried 13 | 3 7 10 9 12 13 13 Average Carried 8 | . 3 7 9 10 11 7 Final Capacity 15 | 8 8 15 15 15 15 15 Final Carried 13 | 1 6 9 9 11 13 . Class Distribution -------------------- 65% | Scavenger-Mutant 34% | Mutant Dominant Class ---------------- Mutant | -10/Materials Scavenger-Mutant | -9/Materials Scavenger-Mutant | -9/Mines Scavenger-Mutant | -7/Zion Scavenger-Mutant | -6/Proximity Caves Mutant | -6/Factory Resources | -11 -10 -9 -9 -7 -6 -6 ----------- Run | Yrd Mat Mat Min Zio Pro Fac Matter Collected 1471 | 296 352 662 . 85 67 9 Remotely 141 | 141 . . . . . . Salvage Created 2487 | 95 628 1535 . . 109 120 Parts 167 | 3 43 111 . . 2 8 Haulers Intercepted 2 | . . 2 . . . . Recyclers Shooed 5 | . 1 4 . . . . Parts Field Recycled . | . . . . . . . Retrieved Matter . | . . . . . . . Parts Self-Destructed 8 | . . . . 1 7 . Prevented 2 | . . . . . 2 . Kills | -11 -10 -9 -9 -7 -6 -6 ------- Run | Yrd Mat Mat Min Zio Pro Fac Combat Hostiles Destroyed 51 | . 13 34 . . 2 2 Guns 39 | . 4 34 . . . 1 Cannons 2 | . . . . . 1 1 AOE 9 | . 9 . . . . . Classes Destroyed 10 | 1 6 2 . . . 1 Worker 3 | . 1 2 . . . . Builder 2 | . 2 . . . . . Hauler 2 | . . 2 . . . . Recycler 7 | 1 3 3 . . . . Operator 1 | . 1 . . . . . Watcher 5 | . 2 3 . . . . Swarmer 17 | . 3 14 . . . . Grunt 23 | . 10 11 . . 2 . Sentry 9 | . . 9 . . . . Hunter 2 | . . . . . . 2 Best Kill Streak 9 | 1 6 9 . . 2 1 Combat Bots Only 8 | . 5 8 . . 2 1 Max Kills in Single Turn 3 | 1 3 2 . . 2 1 Gunslinging 1 | . . 1 . . . . Exploded 2 | . 2 . . . . . Melee . | . . . . . . . Uniques/NPCs Destroyed . | . . . . . . . Combat | -11 -10 -9 -9 -7 -6 -6 -------- Run | Yrd Mat Mat Min Zio Pro Fac Hostile Shots Fired 445 | . 49 220 . . 38 138 Missed 129 | . 17 69 . . 8 35 Damage Taken 4567 | . 370 1565 . . 491 2141 Core 1239 | . 102 207 . . 31 899 Absorbed by Shields 148 | . . . . . . 148 Redirected to Shielding 53 | . 6 10 . . 5 32 Core Remaining (%) 66 | 100 59 . . . 40 . Volleys Fired 202 | 8 50 108 . . 15 21 Largest 2 | 2 2 2 . . 2 2 Hottest 148 | 40 60 91 . . 148 124 Shots Fired 384 | 16 97 214 . . 28 29 Gun 344 | 16 85 211 . . 11 21 Cannon 26 | . . 3 . . 15 8 Launcher 12 | . 12 . . . . . Special 2 | . . . . . 2 . Kinetic 237 | 16 69 135 . . 11 6 Thermal 91 | . . 52 . . 17 22 Explosive 12 | . 12 . . . . . Electromagnetic 44 | . 16 27 . . . 1 Robot Hit Streak 15 | 5 9 15 . . 9 6 Robot Miss Streak 6 | 3 4 5 . . 6 5 Penetration Max . | . . . . . . . Secondary Targets 7 | . . 7 . . . . Max Gunslinging Chain 1 | . . 1 . . . . Shots Hit Robots 233 | 11 54 133 . . 18 17 Core Hits 112 | 3 35 60 . . 5 9 Critical Kills . | . . . . . . . Critical Parts Destroyed 1 | . . 1 . . . . Critical Strikes 9 | . . 8 . . . 1 Burn 6 | . . 5 . . . 1 Destroy 1 | . . 1 . . . . Corrupt 2 | . . 2 . . . . Melee Attacks . | . . . . . . . Impact . | . . . . . . . Slashing . | . . . . . . . Piercing . | . . . . . . . Sneak Attacks . | . . . . . . . Combat Hostiles . | . . . . . . . Follow-up Attacks . | . . . . . . . Damage Inflicted 4132 | 82 1294 2132 . . 319 305 Guns 2996 | 82 560 2034 . . 98 222 Cannons 312 | . . 20 . . 210 82 Explosions 756 | . 731 25 . . . . Melee . | . . . . . . . Ramming 57 | . 3 53 . . . 1 Kinetic 2032 | 82 440 1293 . . 98 119 Thermal 1001 | . 36 559 . . 221 185 Explosive 663 | . 663 . . . . . Electromagnetic 379 | . 152 227 . . . . Impact . | . . . . . . . Slashing . | . . . . . . . Piercing . | . . . . . . . Highest Corruption 1 | . 1 . . . . . Average Corruption 1 | . 1 . . . . . Corruption Purged . | . . . . . . . Corruption Blocked . | . . . . . . . Effects 1 | . 1 . . . . . Energy Discharges 1 | . 1 . . . . . Overload Shots . | . . . . . . . Overflow Damage . | . . . . . . . Projectiles . | . . . . . . . Explosions . | . . . . . . . Melee . | . . . . . . . Knockbacks 1 | . . 1 . . . . Impact 1 | . . 1 . . . . Kinetic . | . . . . . . . Secondary . | . . . . . . . Self-Inflicted Damage 33 | . 27 6 . . . . Shots 3 | . 2 1 . . . . Rammed 14 | . 4 9 . . . 1 Targets Rammed 17 | . 6 10 . . . 1 Kicked . | . . . . . . . Crushed 3 | . 2 1 . . . . Highest Temperature 294 | . 24 9 . . 294 13 Average Temperature 62 | . 9 9 . . 89 6 Received Heat Transfer 977 | . 150 393 . . 135 299 Siege Activations . | . . . . . . . Robots Corrupted . | . . . . . . . Combat Hostiles . | . . . . . . . Parts Fried 1 | . . 1 . . . . Impact Corruptions . | . . . . . . . Robots Melted 1 | . . . . . 1 . Combat Hostiles 1 | . . . . . 1 . Parts Melted 9 | . . 8 . . . 1 Heat Transferred 2683 | . . 1752 . . 450 481 Parts Sabotaged 4 | . . . . . . 4 Parts Stolen . | . . . . . . . Parts Stripped . | . . . . . . . Power Chain Reactions 2 | . 1 1 . . . . Alert | -11 -10 -9 -9 -7 -6 -6 ------- Run | Yrd Mat Mat Min Zio Pro Fac Peak Influence 541 | 5 421 541 148 . . 205 Initial 148 | . 3 123 148 . . 31 Average 240 | 1 173 342 148 . . 63 Maximum Alert Level 2 | . 2 2 . . . 1 Low Security (%) 43 | 100 57 16 100 . . 96 Level 1 34 | . 28 48 . . . 3 Level 2 22 | . 14 34 . . . . Level 3 . | . . . . . . . Level 4 . | . . . . . . . Level 5 . | . . . . . . . High Security . | . . . . . . . Max Security . | . . . . . . . Squads Dispatched 9 | . 2 5 . . . 2 Investigation 4 | . . 3 . . . 1 Extermination . | . . . . . . . Reinforcement 4 | . 2 2 . . . . Assault 1 | . . . . . . 1 Garrison . | . . . . . . . Intercept . | . . . . . . . Searches Triggered . | . . . . . . . Construction Impeded . | . . . . . . . Haulers Reinforced . | . . . . . . . Active Scanning Responses . | . . . . . . . Cargo Convoy Interrupts . | . . . . . . . Stealth | -11 -10 -9 -9 -7 -6 -6 --------- Run | Yrd Mat Mat Min Zio Pro Fac Distress Signals 8 | . 2 6 . . . . Communications Jammed . | . . . . . . . Distress Signals . | . . . . . . . Times Spotted 98 | . 26 53 . . 11 8 Peak Tracking Total 6 | . 6 6 . . 4 5 Tactical Retreats 7 | . 1 4 . . 2 . Traps | -11 -10 -9 -9 -7 -6 -6 ------- Run | Yrd Mat Mat Min Zio Pro Fac Traps Triggered 1 | . 1 . . . . . Indirectly . | . . . . . . . Trap Hack Attempts . | . . . . . . . Triggered . | . . . . . . . Disarmed . | . . . . . . . Reprogrammed . | . . . . . . . Reused . | . . . . . . . Traps Extracted . | . . . . . . . Installed . | . . . . . . . Triggered . | . . . . . . . Machines | -11 -10 -9 -9 -7 -6 -6 ---------- Run | Yrd Mat Mat Min Zio Pro Fac Machines Disabled 6 | . 4 1 . . . 1 Max in Single Turn 1 | . 1 1 . . . 1 Garrison Access 1 | . . . . . . 1 Machines Repaired . | . . . . . . . Machines Dismantled . | . . . . . . . Machines Sabotaged . | . . . . . . . Overloaded Fab Kills . | . . . . . . . Hacking | -11 -10 -9 -9 -7 -6 -6 --------- Run | Yrd Mat Mat Min Zio Pro Fac Machines Accessed 10 | . 2 5 . . 1 2 Terminals 8 | . 1 5 . . 1 1 Fabricators . | . . . . . . . Repair Stations . | . . . . . . . Recycling Units 1 | . 1 . . . . . Scanalyzers . | . . . . . . . Garrison Access 1 | . . . . . . 1 Total Hacks 22 | . 5 12 . . 1 4 Successful 13 | . 3 8 . . 1 1 Failed 9 | . 2 4 . . . 3 Catastrophic 2 | . 1 1 . . . . Database Lockouts . | . . . . . . . Manual 22 | . 3 9 . 9 . 1 Terminals 17 | . 3 12 . . 1 1 Fabricators . | . . . . . . . Repair Stations . | . . . . . . . Recycling Units 2 | . 2 . . . . . Scanalyzers . | . . . . . . . Garrison Access 3 | . . . . . . 3 Terminal Hacks 10 | . 1 8 . . 1 . Record 2 | . . 1 . . 1 . Prototype ID Bank 1 | . . 1 . . . . Alert Level 4 | . . 4 . . . . Unreport Threat 2 | . . 2 . . . . Locate Traps 1 | . 1 . . . . . Fabricator Hacks . | . . . . . . . Repair Station Hacks . | . . . . . . . Recycling Unit Hacks 2 | . 2 . . . . . Process 1 | . 1 . . . . . Report Inventory 1 | . 1 . . . . . Scanalyzer . | . . . . . . . Garrison Access Hacks 1 | . . . . . . 1 Unlock Access 1 | . . . . . . 1 Unauthorized Hacks . | . . . . . . . Terminals . | . . . . . . . Fabricators . | . . . . . . . Repair Stations . | . . . . . . . Recycling Units . | . . . . . . . Scanalyzers . | . . . . . . . Garrison Access . | . . . . . . . Data Cores Recovered . | . . . . . . . Used . | . . . . . . . Hacking Detections 6 | . 1 3 . . . 2 Full Trace Events 4 | . 1 2 . . . 1 Feedback Events . | . . . . . . . Feedback Blocked . | . . . . . . . Robot Schematics Acquired . | . . . . . . . Robots Built . | . . . . . . . Authchips . | . . . . . . . Time . | . . . . . . . Total Robot Build Rating . | . . . . . . . Part Schematics Acquired . | . . . . . . . Parts Built . | . . . . . . . Authchips . | . . . . . . . Time . | . . . . . . . Total Part Build Rating . | . . . . . . . Parts Repaired . | . . . . . . . Time . | . . . . . . . Parts Recycled . | . . . . . . . Recycled Matter 139 | . 139 . . . . . Retrieved Matter . | . . . . . . . Retrieved Components . | . . . . . . . Parts Scanalyzed . | . . . . . . . Part Schematics Acquired . | . . . . . . . Parts Damaged . | . . . . . . . Bothacking | -11 -10 -9 -9 -7 -6 -6 ------------ Run | Yrd Mat Mat Min Zio Pro Fac Used RIF Installer . | . . . . . . . Robots Hacked . | . . . . . . . Non-combat . | . . . . . . . Combat . | . . . . . . . Robot Hacks Applied . | . . . . . . . Relay Couplers Released 1 | . . . . . . 1 Machine Destruction 1 | . . . . . . 1 Fabnet Peak Effective % . | . . . . . . . Robots Rewired . | . . . . . . . Allies Hacked . | . . . . . . . Hacks Repelled . | . . . . . . . Allies | -11 -10 -9 -9 -7 -6 -6 -------- Run | Yrd Mat Mat Min Zio Pro Fac Total Allies 6 | . . . . 4 . 2 Largest Group 4 | . . . . 4 3 1 Highest-Rated Group 154 | . . . . 154 114 96 Highest-Rated Ally 96 | . . . . 40 40 96 Total Orders . | . . . . . . . Ally Attacks 46 | . . . . . 43 3 Total Damage 1035 | . . . . . 718 317 Kills 7 | . . . . . 6 1 Allies Corrupted 1 | . . . . . 1 . Allies Melted 1 | . . . . . 1 . Intel | -11 -10 -9 -9 -7 -6 -6 ------- Run | Yrd Mat Mat Min Zio Pro Fac Robot Analysis Total . | . . . . . . . Derelict Logs Recovered 5 | . . . . 3 2 . Drone Launches . | . . . . . . . Drone Recoveries . | . . . . . . . Exploration | -11 -10 -9 -9 -7 -6 -6 ------------- Run | Yrd Mat Mat Min Zio Pro Fac Turns Passed 6766 | 137 960 1770 29 2392 1017 461 Spaces Moved 3576 | 68 479 837 18 1482 581 111 Core 12 | 7 . . . . . 5 Treads 3564 | 61 479 837 18 1482 581 106 Legs . | . . . . . . . Wheels . | . . . . . . . Hover . | . . . . . . . Flight . | . . . . . . . Fastest Speed 50 | 50 160 160 160 160 160 320 Average Speed 166 | 148 160 160 160 160 164 343 Slowest Speed 1200 | 160 160 160 160 160 240 1200 Overloaded Moves . | . . . . . . . Propulsion Burnouts . | . . . . . . . Robots Hopped . | . . . . . . . Cave-ins Triggered . | . . . . . . . Exploration Rate (%) 43 | 5 65 62 5 87 76 2 Regions Visited 6 Branch Regions 3 Pre-discovered Areas 1 | . . . . 1 . . Known Exits Taken . | . . . . . . . Unknown Exits Taken 6 | 1 1 1 1 1 1 . Scrap Searched 5 | . . . . 2 3 . Spaces Dug . | . . . . . . . Terrain Destroyed 46 | . 42 4 . . . . Melee . | . . . . . . . Projectile . | . . . . . . . AOE 46 | . 42 4 . . . . Terrain Rammed . | . . . . . . . Walls Destroyed . | . . . . . . . Machines Disabled . | . . . . . . . Actions | -11 -10 -9 -9 -7 -6 -6 --------- Run | Yrd Mat Mat Min Zio Pro Fac Total 4004 | 91 576 1050 18 1498 614 157 Wait 48 | . 20 7 1 5 15 . Move 3570 | 67 478 836 17 1481 580 111 Hop . | . . . . . . . Pick Up 59 | 8 9 33 . 3 2 4 Fast Attach . | . . . . . . . Attach 30 | 7 2 5 . . . 16 Detach 2 | . 1 . . . . 1 Swap 45 | 1 6 26 . 9 2 1 Drop 31 | . 4 25 . . . 2 Fire 202 | 8 50 108 . . 15 21 Melee . | . . . . . . . Ram 1 | . . . . . . 1 Kick . | . . . . . . . Crush 16 | . 6 10 . . . . Escape Stasis . | . . . . . . . Rewire . | . . . . . . . Trap . | . . . . . . . Miscellaneous . | . . . . . . . Route ------- -11/Scrapyard -10/Materials (discovered 2 exits: *Mat / [*Min]) -9/Materials (discovered 3 exits: [*Mat] / [*Min x2]) -9/Mines (discovered 2 exits: [*Mat] / *Zio) -7/Zion (discovered 2 exits: Dee / *Pro) -6/Proximity Caves -6/Factory (discovered 1 exit: Fac) History --------- Turn | Location | Event 5 | -11/Scrapyard | Discovered new exit (range 16) 138 | -11/Scrapyard | Entered Materials 318 | -10/Materials | Build established: Mutant 634 | -10/Materials | Discovered new exit (range 10) 703 | -10/Materials | Discovered new exit (range 15) 1098 | -10/Materials | Entered another Materials area 1098 | -9/Materials | Evolved 2 slots: Propulsion x1, Utility x1 1442 | -9/Materials | Build established: Scavenger-Mutant 1624 | -9/Materials | Discovered new exit (range 4) 1779 | -9/Materials | Destroyed 8 combat bots 2032 | -9/Materials | Discovered new exit (range 4) 2157 | -9/Materials | Build established: Mutant 2268 | -9/Materials | Core integrity fell below 50% 2376 | -9/Materials | Discovered new exit (range 15) 2775 | -9/Materials | Build established: Scavenger-Mutant 2868 | -9/Materials | Entered Mines 2878 | -9/Mines | Discovered new exit (range 10) 2895 | -9/Mines | A Derelict revealed a hidden shortcut to a safe place 2897 | -9/Mines | Entered Zion 3075 | -7/Zion | Identified exit to Deep Caves 3112 | -7/Zion | Learned location of 1 exit from Factory 3157 | -7/Zion | Given A8's code to call for help 3325 | -7/Zion | Met Imprinter 3359 | -7/Zion | Imprinted 3361 | -7/Zion | Declared Zion's savior 3611 | -7/Zion | Received a visual enhancement algorithm 4060 | -7/Zion | Found Prototype Device 4061 | -7/Zion | Identified Phasing AFG 4381 | -7/Zion | Found Relay Coupler [Programmer] 5265 | -7/Zion | Discovered new exit (range 14) 5289 | -7/Zion | Entered Proximity Caves 5289 | -6/Proximity Caves | Accompanied by 3 allies 5901 | -6/Proximity Caves | Spotted B-75 Beast 5940 | -6/Proximity Caves | Learned Factory stockpile data 5947 | -6/Proximity Caves | Allies destroyed B-75 Beast 6042 | -6/Proximity Caves | Learned Factory trap positions 6258 | -6/Proximity Caves | Discovered new exit (range 8) 6306 | -6/Proximity Caves | Entered Factory 6306 | -6/Factory | Evolved 6 slots: Propulsion x1, Utility x5 6307 | -6/Factory | Identified exit to Factory 6308 | -6/Factory | Loaded intel: 112 trap records 6504 | -6/Factory | Build established: Mutant 6555 | -6/Factory | Identified exit to Garrison 6713 | -6/Factory | Lost 3 parts (1n2w) 6754 | -6/Factory | Core integrity fell below 50% 6763 | -6/Factory | Core integrity fell below 20% 6765 | -6/Factory | Enhanced Grunt warped into view, answering call for help 6767 | -6/Factory | Enhanced Grunt warped into view, answering call for help 6767 | -6/Factory | Destroyed by Enhanced Grunt with Improved Deuterium Engine chain reaction Last Messages --------------- 06746_ Gauss Rifle destroyed. 06749_ K-01 Serf collects debris. 06752_ Power Shielding destroyed. 06754_ Lrg. Storage Unit destroyed. 06757_ Deuterium Engine destroyed. 06760_ Com. Battery destroyed. 06761_ Connecting with DSF Access... 06761_ Transmitting encrypted signal... >>\\FRLJ Transmitting encrypted signal... 06761_ Slammed into L-41 Fighter. 06762_ Acquired 9 matter. 06764_ Phasing AFG destroyed. 06764_ Cooling System severed. 06765_ Enhanced Grunt warps into view. [Achievement: Help From High Places] 06767_ Enhanced Grunt warps into view. 06767_ L-41 Fighter destroyed. 06767_ Chain reaction triggered in Imp. Deuterium Engine. [Achievement: 5k Club] Map ----- +----------------------------------------------------+ | | | | | ???##################????????????????? | | ???# [ #????????????????? | | ???# """ #????????????????? | | ???# "G !#????????????????? | | ???# "" #????????????????? | | ???# ! #????????????????? | | ???# """"""""" #????????????????? | | ???# ! #????????????????? | | ???# """"""""" #????????????????? | | ???# #????????????????? | | ???#+#######+########????????????????? | | ???# #???# #?????????????????????? | | ???# #???# #?????????????????????? | | ???# #???# #?????????????????????? | | ???# ##### #?????????????????????? | | ???# #?????????????????????? | | ???####### #?????????????????????? | | ?????????#k #?????????????????????? | | ########## #?????????????????????? | | # # #?????????????????????? | | # # #?????????????????????? | | # # ##????????????????????? | | # # gT#????????????????????? | | # # @ g#????????????????????? | | # !# gl!##########+???????????? | | # # g=%% ??????????? | | # " " # ??????????? | | # " " + R ?????????? | | # " " # ?????????? | | # " " # w ?????????? | | # " " # ##########+#??????????? | | # " " # #?????????????????????? | | # " " #######?????????????????????? | | # " " " #???????????????????????????? | | ??T " " #???????????????????????????? | | ??" #???????????????????????????? | | ??? #???????????????????????????? | | ???######????????????????????????????? | | ?????????????????????????????????????? | | ?????????????????????????????????????? | | ?????????????????????????????????????? | | ?????????????????????????????????????? | | ?????????????????????????????????????? | | ?????????????????????????????????????? | | ?????????????????????????????????????? | | ?????????????????????????????????????? | | ?????????????????????????????????????? | | ?????????????????????????????????????? | +----------------------------------------------------+ Best States ------------- Heat Dissipation 59 Energy Generation 14 Energy Capacity 675 Matter Stores 300 Matter Capacity 300 Sight Range 16 Terrain Scan Density 10 Armor Coverage 225 Power Shielding 33 Evasion (%) 40 Core Analysis 6 Recoil Reduction 3 Item Schematics ----------------- None Robot Schematics ------------------ None Fabricated ------------ Nothing Alien Tech Used ----------------- None Achievements -------------- 5k Club Everything Is Under Control Help From High Places Hey, That's Mine! I'm Back, Baby! Made in Tau Ceti IV Robot Respite The One Tourist Use The Force root@ Challenges ------------ None Game ------ Seed TargetHeavyClaymores Manual? 0 Play Time 01:07:16 Cumulative 3.0 hours Start 2025.03.14 @ 17:32:53 End 2025.03.14 @ 18:42:58 Sessions 1 Manual Loads 0 Difficulty Rogue Special Mode None Game No. 5 Rogue 5 Adventurer 0 Explorer 0 Win Type - Total 0 Types 0/0/0/0/0/0/0/0/0 Lore% 4 Gallery% 7 Achievement% 9 Wizard Run 0 Options --------- Layout 0 ASCII 0 Keyboard 0 Movement Numpad Keybinds 0 Fullscreen 1 Font 24/Smallcaps Map View 76x50 Zoom Use 0% Tactical HUD 1 Map Filters NONE Filters NONE Steam 1 RUN: 49d58116-1542-481e-974e-2383b85e6f9b